bitfinex-derivatives/quotes_SOLF0:USTF0_20250514
["timestamp","ask_amount","ask_price","bid_price","bid_amount"]
[1747251952340,57.56,177.19,177.15,5.644]
[1747251952845,67.43875771,177.2,177.15,5.644]
[1747251953041,57.56,177.19,177.15,5.644]
[1747251953243,5.6433,177.18,177.1,5.4878]
[1747251954647,5.6433,177.18,177.15,5.6439]
[1747251955548,57.56,177.19,177.16,5.6437]
[1747251955742,57.56,177.2,177.1,5.4878]
[1747251955944,57.56,177.22,177.1,15.36655771]
[1747251956141,63.2019,177.22,177.18,5.6429]
[1747251957145,63.2019,177.22,177.14,57.56]
[1747251957547,57.56,177.22,177.14,57.56]
[1747251958549,57.56,177.22,177.18,5.6429]
[1747251959552,63.2019,177.22,177.18,5.6429]
[1747251960251,57.56,177.22,177.19,5.6427]
[1747251961452,57.56,177.22,177.2,5.6424]
[1747251962247,57.56,177.22,177.19,5.6426]
[1747251962749,57.56,177.22,177.14,57.56]
[1747251962945,63.2019,177.22,177.14,57.56]
[1747251963151,57.56,177.22,177.14,57.56]
[1747251964150,9.87875771,177.2,177.1,5.4878]
[1747251964456,9.87875771,177.2,177.07,9.87875771]
[1747251964457,57.56,177.19,177.11,57.56]
[1747251964649,57.54,177.18,177.08,57.56]
[1747251964849,5.6439,177.16,177.08,57.56]
[1747251965759,5.6439,177.16,177.12,5.6449]
[1747251966051,9.87875771,177.17,177.12,5.6449]
[1747251966256,5.6441,177.15,177.08,57.56]
[1747251966651,9.87875771,177.17,177.08,57.56]
[1747251966952,57.54,177.18,177.08,57.56]
[1747251967759,57.54,177.18,177.14,5.6442]
[1747251968259,57.54,177.18,177.15,5.644]
[1747251969255,63.1831,177.18,177.15,5.644]
[1747251970062,57.54,177.18,177.15,5.644]
[1747251971762,63.1831,177.18,177.14,5.6442]
[1747251971964,57.54,177.18,177.1,57.54]
[1747251972161,67.41875771,177.18,177.08,57.56]
[1747251972361,5.6437,177.17,177.13,5.6444]
[1747251972768,67.41875771,177.18,177.08,57.56]
[1747251973462,73.06195771,177.18,177.14,5.6442]
[1747251973663,67.41875771,177.18,177.08,57.56]
[1747251973964,5.6436,177.17,177.13,5.6444]
[1747251974160,67.41875771,177.18,177.08,57.56]
[1747251974565,71.06135771,177.18,177.08,57.56]
[1747251974761,71.06135771,177.18,177.1,5.6454]
[1747251974965,71.06135771,177.18,177.08,57.56]
[1747251975259,5.6446,177.14,177.08,57.56]
[1747251975466,57.54,177.14,177.08,57.56]
[1747251976462,63.1835,177.17,177.13,5.6444]
[1747251977366,57.54,177.17,177.14,5.6442]
[1747251977567,57.54,177.17,177.08,57.56]
[1747251978465,63.1835,177.17,177.13,5.6445]
[1747251978867,63.1835,177.17,177.08,57.56]
[1747251979064,57.54,177.17,177.14,5.6443]
[1747251979562,57.54,177.17,177.08,57.56]
[1747251979966,115.1,177.19,177.09,57.54]
[1747251980267,115.08,177.19,177.09,57.54]
[1747251980467,115.08,177.19,177.1,5.5404]
[1747251980769,63.1628,177.19,177.15,5.6438]
[1747251980965,5.6428,177.19,177.15,5.6438]
[1747251981367,5.6431,177.18,177.14,5.6442]
[1747251981872,11.79185771,177.21,177.12,57.54]
[1747251982071,57.52,177.19,177.12,57.54]
[1747251982271,63.1629,177.19,177.15,5.644]
[1747251983373,5.6431,177.18,177.15,5.644]
[1747251983672,5.6431,177.18,177.14,5.6442]
[1747251984976,5.6431,177.18,177.15,5.6439]
[1747251987475,5.6434,177.17,177.12,57.54]
[1747251988076,5.6434,177.17,177.13,5.6445]
[1747251988276,5.6438,177.16,177.13,5.6445]
[1747251990978,9.87875771,177.18,177.09,57.54]
[1747251992380,5.6443,177.15,177.12,5.6448]
[1747251993785,5.6445,177.14,177.11,5.6453]
[1747251993980,57.52,177.15,177.09,57.54]
[1747251994179,57.52,177.15,177.06,57.54]
[1747251994981,5.6448,177.13,177.1,5.6454]
[1747251995178,57.52,177.16,177.06,57.54]
[1747251995380,57.52,177.16,177.06,67.41875771]
[1747251997083,5.6434,177.18,177.06,67.41875771]
[1747251997480,5.6434,177.18,177.14,5.6441]
[1747251998480,5.6434,177.17,177.13,5.6445]
[1747251998883,115.06,177.19,177.11,57.5]
[1747251999083,5.6435,177.17,177.12,5.6448]
[1747251999488,115.06,177.19,177.11,57.5]
[1747251999985,5.6434,177.18,177.13,5.6447]
[1747252000587,5.6434,177.17,177.13,5.6447]
[1747252001386,5.6434,177.17,177.11,57.5]
[1747252001387,5.6434,177.17,177.14,5.6443]
[1747252001986,5.6434,177.17,177.15,5.644]
[1747252002388,5.6432,177.18,177.15,5.644]
[1747252005186,5.6432,177.18,177.16,5.6437]
[1747252005386,120.7028,177.19,177.16,5.6437]
[1747252005587,115.06,177.19,177.11,57.5]
[1747252005889,5.6433,177.18,177.15,5.6438]
[1747252006090,61.1935,177.22,177.11,57.5]
[1747252006279,57.5,177.22,177.11,57.5]
[1747252006483,57.5,177.23,177.12,9.87875771]
[1747252006681,57.5,177.23,177.13,57.5]
[1747252006892,57.5,177.23,177.2,5.6423]
[1747252007091,5.6413,177.24,177.2,5.6423]
[1747252007292,57.5,177.25,177.16,57.5]
[1747252007590,5.6412,177.24,177.2,5.6423]
[1747252007792,5.6412,177.24,177.16,57.5]
[1747252007991,9.87875771,177.24,177.16,57.5]
[1747252008594,5.6427,177.2,177.16,63.1435]
[1747252008985,57.5,177.21,177.16,57.5]
[1747252009193,63.1422,177.21,177.16,57.5]
[1747252009694,57.5,177.21,177.16,57.5]
[1747252009895,59.3512,177.26,177.16,57.5]
[1747252010296,59.3512,177.26,177.2,5.6421]
[1747252010297,5.6412,177.24,177.2,5.6421]
[1747252012193,5.641,177.25,177.2,5.6421]
[1747252012597,5.641,177.25,177.21,5.6421]
[1747252014587,114.98,177.27,177.17,57.48]
[1747252014793,57.48,177.27,177.17,57.48]
[1747252014991,63.1203,177.27,177.23,5.6414]
[1747252015194,57.48,177.27,177.2,57.48]
[1747252015598,63.1203,177.27,177.23,5.6415]
[1747252015798,57.48,177.27,177.2,57.48]
[1747252016997,5.6407,177.26,177.22,5.6416]
[1747252017492,57.48,177.27,177.2,57.48]
[1747252017695,63.1203,177.27,177.23,5.6412]
[1747252017895,57.48,177.27,177.23,5.6412]
[1747252018198,63.1203,177.27,177.23,5.6412]
[1747252018387,57.48,177.27,177.22,5.6417]
[1747252018591,57.48,177.27,177.2,57.48]
[1747252018795,5.6407,177.26,177.2,57.48]
[1747252019498,5.6407,177.26,177.22,5.6416]
[1747252019797,5.6409,177.25,177.2,57.48]
[1747252019987,67.35875771,177.27,177.2,63.1223]
[1747252020189,67.35875771,177.27,177.2,57.48]
[1747252020390,57.48,177.26,177.17,57.48]
[1747252020589,9.87875771,177.24,177.16,1.8629]
[1747252020893,57.46,177.23,177.14,57.48]
[1747252021091,5.6424,177.21,177.18,5.6429]
[1747252021800,5.6419,177.22,177.18,5.6429]
[1747252022000,5.6419,177.22,177.19,5.6427]
[1747252022296,57.46,177.23,177.14,57.48]
[1747252022502,57.46,177.23,177.2,5.6424]
[1747252022698,57.46,177.23,177.14,57.48]
[1747252023100,63.1017,177.23,177.19,5.6425]
[1747252024003,5.6418,177.22,177.18,5.643]
[1747252024295,67.33875771,177.23,177.14,57.48]
[1747252025004,57.46,177.23,177.14,57.48]
[1747252025197,5.6424,177.21,177.14,57.48]
[1747252025597,57.46,177.23,177.14,57.48]
[1747252025800,5.6421,177.22,177.14,57.48]
[1747252026207,57.46,177.23,177.14,57.48]
[1747252026508,5.6422,177.21,177.17,5.6432]
[1747252029513,5.6419,177.22,177.18,5.6431]
[1747252030212,5.6422,177.21,177.17,5.6433]
[1747252030516,5.6422,177.21,177.14,57.48]
[1747252030817,5.6426,177.2,177.14,57.48]
[1747252031116,5.6426,177.2,177.16,5.6435]
[1747252031420,5.6426,177.2,177.17,5.6433]
[1747252031716,57.46,177.22,177.14,57.48]
[1747252032116,63.1019,177.22,177.14,57.48]
[1747252032319,57.46,177.22,177.14,57.48]
[1747252033417,63.1019,177.22,177.18,5.6429]
[1747252034419,57.46,177.22,177.18,5.6429]
[1747252034619,57.46,177.22,177.19,5.6427]
[1747252034819,57.46,177.24,177.14,57.48]
[1747252035119,57.46,177.24,177.19,5.6426]
[1747252036022,5.6415,177.23,177.2,5.6424]
[1747252036724,63.1013,177.24,177.21,5.6421]
[1747252037321,5.6415,177.23,177.21,5.6421]
[1747252037622,5.6415,177.23,177.2,5.6424]
[1747252038222,5.6415,177.23,177.21,5.6421]
[1747252038725,63.1013,177.24,177.21,5.6421]
[1747252039222,57.46,177.24,177.14,57.48]
[1747252039824,5.6421,177.21,177.18,5.6429]
[1747252041923,5.6421,177.21,177.19,5.6427]
[1747252043022,5.6419,177.22,177.14,57.48]
[1747252043225,57.46,177.24,177.14,57.48]
[1747252043421,57.44,177.24,177.14,57.48]
[1747252043621,57.44,177.24,177.19,5.6426]
[1747252043923,5.6417,177.23,177.19,5.6426]
[1747252044123,57.44,177.24,177.19,5.6426]
[1747252044325,57.44,177.24,177.18,5.6431]
[1747252044726,5.642,177.22,177.18,5.6431]
[1747252045123,5.642,177.22,177.19,5.6426]
[1747252045328,57.44,177.24,177.14,57.48]
[1747252045329,5.6422,177.21,177.14,57.48]
[1747252045724,57.44,177.24,177.14,57.48]
[1747252045930,5.6413,177.24,177.14,57.48]
[1747252046322,5.6413,177.24,177.2,5.6422]
[1747252046517,57.46,177.25,177.18,57.46]
[1747252046730,57.44,177.26,177.18,57.46]
[1747252047027,57.44,177.26,177.22,5.6416]
[1747252047621,63.0807,177.26,177.23,5.6415]
[1747252048128,57.44,177.26,177.23,5.6415]
[1747252049526,57.44,177.27,177.23,5.6415]
[1747252049727,5.6407,177.26,177.23,5.6415]
[1747252050228,5.6409,177.25,177.22,5.6417]
[1747252050722,57.44,177.27,177.18,57.46]
[1747252050921,5.641,177.25,177.18,57.46]
[1747252051331,57.44,177.27,177.18,57.46]
[1747252051623,5.6406,177.26,177.22,5.6416]
[1747252052027,57.44,177.27,177.22,5.6416]
[1747252052230,57.44,177.27,177.18,57.46]
[1747252052730,5.6408,177.26,177.22,5.6416]
[1747252053830,5.6408,177.26,177.23,5.6414]
[1747252055228,63.0804,177.27,177.18,57.46]
[1747252055432,57.44,177.27,177.16,5.4978]
[1747252055630,5.6419,177.22,177.16,5.4978]
[1747252056325,5.6422,177.21,177.18,5.6429]
[1747252056526,57.42,177.23,177.15,57.44]
[1747252056938,5.6424,177.21,177.15,57.44]
[1747252058033,5.6419,177.22,177.15,57.44]
[1747252058534,5.6422,177.21,177.15,57.44]
[1747252058834,57.42,177.23,177.15,57.44]
[1747252059035,5.6423,177.21,177.17,5.6431]
[1747252059235,5.6423,177.21,177.15,57.44]
[1747252059933,5.6419,177.22,177.15,57.44]
[1747252060938,5.6422,177.21,177.18,5.6428]
[1747252061138,5.6422,177.21,177.15,57.44]
[1747252061937,5.6422,177.21,177.17,5.6431]
[1747252062540,5.6424,177.2,177.15,57.44]
[1747252062738,9.87875771,177.22,177.11,57.42]
[1747252063039,11.71625771,177.22,177.12,57.42]
[1747252063234,5.6428,177.19,177.16,5.6437]
[1747252063639,63.0628,177.19,177.16,5.6437]
[1747252064137,63.0628,177.19,177.17,5.6434]
[1747252064339,63.0628,177.19,177.12,57.42]
[1747252064845,67.29875771,177.19,177.12,57.42]
[1747252065139,67.29875771,177.19,177.09,120.4511]
[1747252065331,5.6436,177.17,177.13,5.6446]
[1747252065533,67.29875771,177.19,177.13,5.6446]
[1747252065742,67.29875771,177.19,177.09,63.0311]
[1747252065933,67.29875771,177.19,177.12,5.6448]
[1747252066540,67.29875771,177.19,177.11,5.6452]
[1747252066945,9.87875771,177.16,177.1,5.6455]
[1747252067240,57.42,177.15,177.08,118.44045887]
[1747252067542,5.6447,177.13,177.08,118.44045887]
[1747252067743,57.42,177.15,177.06,57.42]
[1747252068140,5.6447,177.13,177.11,5.6452]
[1747252068340,57.42,177.15,177.06,57.42]
[1747252069848,57.42,177.15,177.12,5.6448]
[1747252070044,57.42,177.15,176.99,118.50075293]
[1747252070344,5.6447,177.13,177.08,5.6461]
[1747252070742,9.87875771,177.14,177.05,57.42]
[1747252070936,9.87875771,177.14,177.07,5.6465]
[1747252071141,9.87875771,177.14,177.05,57.42]
[1747252071646,5.645,177.12,177.08,5.6461]
[1747252072046,5.645,177.12,177.05,57.42]
[1747252073345,5.645,177.12,177.09,5.6459]
[1747252074445,5.6448,177.13,177.09,5.6459]
[1747252074948,5.6441,177.15,177.05,57.42]
[1747252075147,114.84,177.16,177.06,5.5199]
[1747252075741,120.4839,177.16,177.12,5.6448]
[1747252075937,114.84,177.16,177.06,5.5199]
[1747252076445,114.84,177.16,177.06,15.39865771]
[1747252076935,57.42,177.16,177.06,15.39865771]
[1747252077135,57.42,177.16,177.12,5.6449]
[1747252078142,63.0829,177.19,177.14,5.6443]
[1747252078448,114.86,177.19,177.1,57.44]
[1747252078642,5.6439,177.16,177.12,5.6447]
[1747252078843,114.86,177.19,177.1,57.44]
[1747252079647,5.6435,177.17,177.1,57.44]
[1747252080249,5.6432,177.18,177.14,5.6442]
[1747252080648,57.42,177.2,177.14,5.6442]
[1747252081148,57.42,177.2,177.1,57.44]
[1747252081149,57.42,177.2,177.15,5.644]
[1747252081545,57.44,177.22,177.14,57.44]
[1747252081744,114.86,177.22,177.17,5.6434]
[1747252082048,114.86,177.22,177.14,57.44]
[1747252082049,57.42,177.22,177.14,57.44]
[1747252082250,57.42,177.23,177.14,57.44]
[1747252082451,57.42,177.24,177.14,57.44]
[1747252082850,57.42,177.24,177.18,5.6429]
[1747252083050,5.6416,177.23,177.14,57.44]
[1747252083649,5.6416,177.23,177.19,5.6426]
[1747252084051,67.29875771,177.24,177.14,57.44]
[1747252084251,67.29875771,177.24,177.17,5.6431]
[1747252084953,57.42,177.24,177.17,5.6431]
[1747252085551,5.6418,177.22,177.18,5.6431]
[1747252085947,57.42,177.24,177.18,5.6431]
[1747252086751,5.642,177.22,177.14,57.44]
[1747252087052,57.42,177.24,177.14,57.44]
[1747252087752,5.6421,177.21,177.18,5.6428]
[1747252088052,57.42,177.24,177.14,57.44]
[1747252088754,5.6422,177.21,177.18,5.6428]
[1747252090253,5.6419,177.22,177.18,5.6428]
[1747252090456,57.4,177.24,177.14,57.44]
[1747252090955,57.4,177.24,177.21,5.6419]
[1747252091757,5.641,177.25,177.21,5.6419]
[1747252092456,5.6412,177.24,177.21,5.6419]
[1747252092751,57.4,177.26,177.2,5.6424]
[1747252092954,5.6422,177.21,177.16,57.38]
[1747252093346,9.87875771,177.25,177.18,5.6428]
[1747252093548,5.642,177.22,177.18,5.6428]
[1747252093757,5.642,177.22,177.19,5.6427]
[1747252094058,9.87875771,177.25,177.19,5.6427]
[1747252094556,9.87875771,177.25,177.2,5.6424]
[1747252094758,15.51965771,177.25,177.2,5.6424]
[1747252095253,9.87875771,177.25,177.21,5.6421]
[1747252095463,9.87875771,177.25,177.16,57.38]
[1747252095859,9.87875771,177.25,177.21,5.6419]
[1747252096056,9.87875771,177.25,177.16,57.38]
[1747252097159,57.38,177.26,177.16,67.25875771]
[1747252097458,57.38,177.26,177.25,5.6409]
[1747252099365,114.76,177.31,177.2,57.38]
[1747252099567,114.76,177.31,177.21,5.3479]
[1747252100059,57.38,177.31,177.22,57.38]
[1747252100364,114.76,177.31,177.22,57.38]
[1747252100562,120.399,177.31,177.26,5.6404]
[1747252100862,120.399,177.31,177.24,57.38]
[1747252101260,5.639,177.31,177.24,57.38]
[1747252101762,66.7344,177.34,177.24,57.38]
[1747252101961,63.0181,177.34,177.24,57.38]
[1747252102159,57.38,177.34,177.24,57.38]
[1747252102361,59.2825,177.35,177.3,5.6391]
[1747252102560,57.36,177.36,177.28,57.38]
[1747252102864,57.36,177.36,177.32,5.6384]
[1747252103361,57.36,177.36,177.33,5.638]
[1747252103561,57.38,177.37,177.28,57.38]
[1747252103767,114.74,177.37,177.28,57.38]
[1747252104064,57.38,177.37,177.28,57.38]
[1747252104365,57.36,177.38,177.29,5.6518]
[1747252106268,67.23875771,177.38,177.29,5.6518]
[1747252106469,5.6382,177.34,177.3,5.6392]
[1747252107073,5.6377,177.35,177.31,5.6389]
[1747252107469,67.23875771,177.38,177.29,5.6518]
[1747252107767,3.6541,177.39,177.29,5.6518]
[1747252107971,60.9941,177.39,177.29,5.6518]
[1747252108170,5.6369,177.38,177.33,5.6381]
[1747252108772,5.6369,177.38,177.29,5.6518]
[1747252109776,5.6369,177.38,177.33,5.6381]
[1747252110574,5.6369,177.38,177.34,5.6379]
[1747252110969,5.6372,177.37,177.33,5.6382]
[1747252112576,5.6374,177.36,177.32,5.6384]
[1747252114075,5.6372,177.37,177.33,5.6382]
[1747252116179,5.6368,177.38,177.34,5.6378]
[1747252116381,5.6368,177.38,177.29,5.6518]
[1747252116582,5.6368,177.38,177.3,57.32]
[1747252116878,5.6368,177.38,177.34,5.6378]
[1747252117375,5.6368,177.38,177.32,57.34]
[1747252117376,5.6371,177.37,177.32,57.34]
[1747252117582,60.9741,177.39,177.32,57.34]
[1747252117782,5.638,177.35,177.32,57.34]
[1747252117981,9.87875771,177.38,177.29,57.34]
[1747252118181,9.87875771,177.38,177.3,5.6391]
[1747252118381,1.8104,177.37,177.29,57.34]
[1747252118683,1.8104,177.37,177.31,5.6387]
[1747252118890,5.6379,177.35,177.29,57.34]
[1747252119387,5.6381,177.34,177.29,57.34]
[1747252119685,57.32,177.35,177.31,5.6387]
[1747252120185,62.9578,177.35,177.31,5.6387]
[1747252120482,57.32,177.35,177.29,57.34]
[1747252120887,57.32,177.35,177.3,5.6392]
[1747252122086,5.6381,177.34,177.3,5.6392]
[1747252122388,57.32,177.35,177.3,5.6392]
[1747252122590,62.9578,177.35,177.31,5.6386]
[1747252122887,57.32,177.35,177.31,5.6386]
[1747252123186,5.6382,177.34,177.31,5.6386]
[1747252123586,5.6382,177.34,177.3,5.6392]
[1747252125482,5.6385,177.33,177.29,62.9795]
[1747252125992,5.639,177.31,177.29,57.34]
[1747252126289,67.19875771,177.35,177.25,114.64]
[1747252126686,5.6386,177.32,177.25,114.64]
[1747252127588,5.6391,177.31,177.25,114.64]
[1747252127789,67.19875771,177.35,177.27,5.64]
[1747252128190,67.19875771,177.35,177.25,114.64]
[1747252128393,67.19875771,177.35,177.27,5.64]
[1747252128586,67.19875771,177.35,177.25,114.64]
[1747252128888,5.6392,177.31,177.28,5.6397]
[1747252129288,67.19875771,177.35,177.28,5.6397]
[1747252130289,5.6389,177.32,177.29,5.6395]
[1747252130489,67.19875771,177.35,177.25,114.64]
[1747252130790,62.958,177.34,177.31,5.6387]
[1747252130991,57.32,177.34,177.25,114.64]
[1747252131992,57.32,177.34,177.31,5.6389]
[1747252132188,57.32,177.34,177.25,114.64]
[1747252132691,62.9581,177.34,177.3,5.6391]
[1747252132991,62.9581,177.34,177.25,114.64]
[1747252133192,57.32,177.34,177.31,5.6387]
[1747252133485,9.87875771,177.38,177.29,57.32]
[1747252133680,60.9741,177.39,177.32,5.6383]
[1747252133681,5.6375,177.36,177.32,5.6383]
[1747252135093,5.6375,177.36,177.33,5.6383]
[1747252135693,5.6375,177.36,177.32,5.6385]
[1747252135996,5.6375,177.36,177.29,57.32]
[1747252136394,5.6375,177.36,177.33,5.6381]
[1747252138490,5.6375,177.36,177.34,5.6379]
[1747252138796,62.9372,177.37,177.34,5.6379]
[1747252138994,57.3,177.37,177.33,5.638]
[1747252139188,5.6374,177.36,177.33,5.638]
[1747252139589,5.6374,177.36,177.34,5.6379]
[1747252143603,60.9741,177.39,177.29,114.62]
[1747252143803,114.62,177.39,177.3,9.87875771]
[1747252143997,114.62,177.39,177.3,15.48955771]
[1747252144302,120.2566,177.39,177.3,15.48955771]
[1747252144703,114.62,177.39,177.3,15.48955771]
[1747252145207,5.6368,177.38,177.3,15.48955771]
[1747252145401,57.3,177.4,177.3,15.48955771]
[1747252145701,1.8212,177.41,177.3,15.48955771]
[1747252145902,59.1212,177.41,177.3,15.48955771]
[1747252146206,5.6363,177.4,177.3,15.48955771]
[1747252147605,5.6363,177.4,177.37,5.637]
[1747252147904,5.6363,177.4,177.34,57.3]
[1747252148505,5.6363,177.4,177.36,5.637]
[1747252148799,5.6363,177.4,177.34,57.3]
[1747252148800,7.4571,177.41,177.34,57.3]
[1747252149609,7.4571,177.41,177.37,5.6368]
[1747252149802,5.6362,177.4,177.37,5.6368]
[1747252150106,1.8212,177.41,177.37,5.6368]
[1747252150903,7.4571,177.41,177.37,5.6368]
[1747252152007,7.4571,177.41,177.38,5.6367]
[1747252153508,5.6359,177.41,177.38,5.6367]
[1747252154112,5.6359,177.41,177.37,5.6369]
[1747252154505,5.6359,177.41,177.34,57.3]
[1747252155613,5.6359,177.41,177.38,5.6367]
[1747252157313,120.2157,177.42,177.34,57.3]
[1747252157818,57.3,177.42,177.34,57.3]
[1747252158010,5.6349,177.44,177.34,57.3]
[1747252158209,57.26,177.45,177.34,57.3]
[1747252158407,62.8947,177.45,177.41,5.6356]
[1747252158612,5.6347,177.45,177.38,57.26]
[1747252159711,5.6347,177.45,177.42,5.6354]
[1747252160115,5.6347,177.45,177.41,5.6356]
[1747252161515,5.6347,177.45,177.42,5.6353]
[1747252163120,5.6348,177.44,177.38,57.26]
[1747252163616,5.6348,177.44,177.41,5.6355]
[1747252164115,5.6351,177.43,177.38,57.26]
[1747252164417,57.26,177.46,177.38,57.26]
[1747252165018,5.6349,177.44,177.4,5.636]
[1747252165215,5.6349,177.44,177.38,57.26]
[1747252165513,57.26,177.46,177.38,57.26]
[1747252166115,57.26,177.46,177.42,5.6354]
[1747252166621,57.26,177.48,177.38,67.13875771]
[1747252166814,57.24,177.5,177.41,9.87875771]
[1747252167013,57.24,177.5,177.42,57.26]
[1747252167214,5.6332,177.49,177.45,5.6343]
[1747252167413,114.5,177.51,177.42,57.26]
[1747252168223,5.6335,177.49,177.42,57.26]
[1747252168827,5.6336,177.48,177.44,5.6348]
[1747252171024,5.6334,177.49,177.44,5.6348]
[1747252171520,5.6334,177.49,177.45,5.6344]
[1747252172527,5.6334,177.49,177.46,5.6342]
[1747252172823,62.853,177.5,177.42,57.26]
[1747252173126,114.48,177.51,177.47,5.6339]
[1747252173325,120.1128,177.51,177.47,5.6339]
[1747252173526,62.8528,177.51,177.47,5.6339]
[1747252174428,57.22,177.51,177.42,57.26]
[1747252176524,57.2,177.51,177.42,57.26]
[1747252176728,5.6329,177.5,177.47,5.6338]
[1747252176929,57.2,177.51,177.47,5.6338]
[1747252177325,5.6327,177.51,177.48,5.6335]
[1747252178231,57.24,177.54,177.46,57.24]
[1747252178834,5.6315,177.55,177.51,5.6323]
[1747252179032,62.8315,177.55,177.51,5.6323]
[1747252179232,5.6317,177.54,177.51,5.6323]
[1747252179531,57.2,177.55,177.51,5.6323]
[1747252180135,5.6317,177.54,177.51,5.6323]
[1747252180532,5.6317,177.54,177.5,5.6328]
[1747252180938,5.632,177.53,177.49,5.6331]
[1747252181132,5.632,177.53,177.46,57.24]
[1747252182035,5.6318,177.54,177.5,5.6328]
[1747252182433,57.2,177.55,177.5,5.6328]
[1747252182634,5.6322,177.53,177.5,5.6328]
[1747252186646,5.6323,177.52,177.5,5.6328]
[1747252187447,5.632,177.53,177.5,5.6328]
[1747252187745,5.632,177.53,177.51,5.6325]
[1747252188145,5.632,177.53,177.46,57.24]
[1747252189147,5.632,177.53,177.49,5.633]
[1747252192047,5.632,177.53,177.5,5.6328]
[1747252192347,5.6323,177.52,177.48,6.2977118]
[1747252192648,5.6323,177.52,177.49,5.6329]
[1747252192849,6.2977118,177.54,177.48,6.2977118]
[1747252193050,5.6321,177.53,177.48,6.2977118]
[1747252194646,5.6321,177.53,177.5,5.6329]
[1747252198354,84.21191762,177.62,177.5,63.4777118]
[1747252198651,6.2977118,177.53,177.47,6.2977118]
[1747252198852,5.6323,177.52,177.49,5.6329]
[1747252199351,6.2977118,177.53,177.46,57.18]
[1747252199547,114.34,177.55,177.43,5.5231]
[1747252199752,6.2977118,177.51,177.43,62.7031]
[1747252200056,69.0904118,177.51,177.48,5.6335]
[1747252200349,6.2977118,177.59,177.5,6.2977118]
[1747252200546,11.92182509,177.64,177.56,6.29312509]
[1747252200745,3.6237,177.66,177.58,6.29312509]
[1747252200949,6.29312509,177.65,177.58,6.29312509]
[1747252201151,5.6274,177.68,177.63,5.6288]
[1747252201348,9.82300038,177.73,177.6,9.82300038]
[1747252201543,3.6237,177.75,177.61,57.18]
[1747252201748,66.98300038,177.74,177.61,57.18]
[1747252202250,5.6268,177.7,177.61,57.18]
[1747252202450,62.7868,177.7,177.61,57.18]
[1747252203153,57.16,177.7,177.61,57.18]
[1747252203451,1.8196,177.69,177.58,57.16]
[1747252203644,1.8196,177.69,177.61,5.6294]
[1747252203848,9.82300038,177.68,177.58,57.16]
[1747252204048,57.16,177.67,177.58,57.16]
[1747252204253,57.16,177.66,177.58,57.16]
[1747252205356,57.16,177.66,177.61,5.6292]
[1747252205552,57.16,177.66,177.58,57.16]
[1747252205855,57.16,177.66,177.61,5.6292]
[1747252206258,57.16,177.66,177.58,57.16]
[1747252206460,57.16,177.66,177.6,5.6295]
[1747252206858,114.32,177.66,177.6,5.6295]
[1747252207156,114.32,177.66,177.58,57.16]